fUSD/lending_fUSD_20260611
["ID","MTS","AMOUNT","RATE_DAILY","PERIOD"]
[424777858,1781155840000,-500.0,0.00013698,2]
[424777881,1781155840000,-533.65,0.00013698,2]
[424777888,1781155840000,-500.0,0.00013698,2]
[424777886,1781155840000,-500.0,0.00013698,2]
[424777916,1781155840000,-500.0,0.00013698,2]
[424777915,1781155840000,-500.0,0.00013698,2]
[424777917,1781155840000,-500.0,0.00013698,2]
[424777919,1781155840000,-500.0,0.00013698,2]
[424777918,1781155840000,-500.0,0.00013698,2]
[424777923,1781155840000,-995.43,0.00013698,2]
[424777925,1781155840000,-995.43,0.00013698,2]
[424777920,1781155840000,-995.43,0.00013698,2]
[424777922,1781155840000,-995.43,0.00013698,2]
[424777926,1781155840000,-995.43,0.00013698,2]
[424777914,1781155840000,-500.0,0.00013698,2]
[424777924,1781155840000,-995.43,0.00013698,2]
[424777929,1781155840000,-500.0,0.00013698,2]
[424777928,1781155840000,-500.0,0.00013698,2]
[424777933,1781155840000,-500.0,0.00013698,2]
[424777930,1781155840000,-500.0,0.00013698,2]
[424777936,1781155840000,-222.15,0.00013699,2]
[424777931,1781155840000,-500.0,0.00013698,2]
[424777935,1781155840000,-200.0,0.00013699,2]
[424777939,1781155840000,-185.12,0.00013699,2]
[424777932,1781155840000,-500.0,0.00013698,2]
[424777885,1781155840000,-500.0,0.00013698,2]
[424777927,1781155840000,-500.0,0.00013698,2]
[424777912,1781155840000,-409.2403445,0.00013698,2]
[424777921,1781155840000,-995.43,0.00013698,2]
[424777911,1781155840000,-500.0,0.00013698,2]
[424777913,1781155840000,-500.0,0.00013698,2]
[424777889,1781155840000,-500.0,0.00013698,2]
[424777894,1781155840000,-500.0,0.00013698,2]
[424777892,1781155840000,-551.89013735,0.00013698,2]
[424777891,1781155840000,-500.0,0.00013698,2]
[424777890,1781155840000,-500.0,0.00013698,2]
[424777893,1781155840000,-500.0,0.00013698,2]
[424777895,1781155840000,-500.0,0.00013698,2]
[424777896,1781155840000,-500.0,0.00013698,2]
[424777898,1781155840000,-500.0,0.00013698,2]
[424777897,1781155840000,-500.0,0.00013698,2]
[424777899,1781155840000,-500.0,0.00013698,2]
[424777887,1781155840000,-500.0,0.00013698,2]
[424777904,1781155840000,-500.0,0.00013698,2]
[424777900,1781155840000,-500.0,0.00013698,2]
[424777905,1781155840000,-500.0,0.00013698,2]
[424777901,1781155840000,-500.0,0.00013698,2]
[424777906,1781155840000,-500.0,0.00013698,2]
[424777902,1781155840000,-500.0,0.00013698,2]
[424777907,1781155840000,-500.0,0.00013698,2]
[424777910,1781155840000,-500.0,0.00013698,2]
[424777909,1781155840000,-500.0,0.00013698,2]
[424777908,1781155840000,-500.0,0.00013698,2]
[424777903,1781155840000,-500.0,0.00013698,2]
[424777972,1781155841000,-500.0,0.00013699,2]
[424777979,1781155841000,-500.0,0.00013699,2]
[424777977,1781155841000,-500.0,0.00013699,2]
[424777978,1781155841000,-500.0,0.00013699,2]
[424777976,1781155841000,-500.0,0.00013699,2]
[424777971,1781155841000,-500.0,0.00013699,2]
[424777974,1781155841000,-500.0,0.00013699,2]
[424777970,1781155841000,-500.0,0.00013699,2]
[424777973,1781155841000,-500.0,0.00013699,2]
[424777981,1781155841000,-533.40008066,0.00013699,2]
[424777975,1781155841000,-637.67046264,0.00013699,2]
[424777982,1781155841000,-533.40008066,0.00013699,2]
[424777987,1781155841000,-533.40008066,0.00013699,2]
[424777983,1781155841000,-533.40008066,0.00013699,2]
[424777985,1781155841000,-533.40008066,0.00013699,2]
[424777984,1781155841000,-533.40008066,0.00013699,2]
[424777986,1781155841000,-533.40008066,0.00013699,2]
[424777989,1781155841000,-533.40008066,0.00013699,2]
[424777988,1781155841000,-533.40008066,0.00013699,2]
[424777990,1781155841000,-533.40008066,0.00013699,2]
[424777992,1781155841000,-533.40008066,0.00013699,2]
[424777991,1781155841000,-533.40008066,0.00013699,2]
[424777993,1781155841000,-533.40008066,0.00013699,2]
[424777980,1781155841000,-500.0,0.00013699,2]
[424777969,1781155841000,-500.0,0.00013699,2]
[424777940,1781155841000,-154.27,0.00013699,2]
[424777967,1781155841000,-500.0,0.00013699,2]
[424777994,1781155841000,-533.40008066,0.00013699,2]
[424777942,1781155841000,-771.36,0.00013699,2]
[424777945,1781155841000,-22261.86,0.00013699,2]
[424777944,1781155841000,-2500.0,0.00013699,2]
[424777946,1781155841000,-500.0,0.00013699,2]
[424777947,1781155841000,-500.0,0.00013699,2]
[424777951,1781155841000,-500.0,0.00013699,2]
[424777950,1781155841000,-500.0,0.00013699,2]
[424777948,1781155841000,-500.0,0.00013699,2]
[424777949,1781155841000,-500.0,0.00013699,2]
[424777952,1781155841000,-500.0,0.00013699,2]
[424777968,1781155841000,-500.0,0.00013699,2]
[424777953,1781155841000,-500.0,0.00013699,2]
[424777956,1781155841000,-500.0,0.00013699,2]
[424777955,1781155841000,-500.0,0.00013699,2]
[424777957,1781155841000,-500.0,0.00013699,2]
[424777962,1781155841000,-500.0,0.00013699,2]
[424777959,1781155841000,-500.0,0.00013699,2]
[424777961,1781155841000,-500.0,0.00013699,2]
[424777960,1781155841000,-500.0,0.00013699,2]
[424777958,1781155841000,-500.0,0.00013699,2]
[424777964,1781155841000,-500.0,0.00013699,2]
[424777966,1781155841000,-500.0,0.00013699,2]
[424777965,1781155841000,-500.0,0.00013699,2]
[424777954,1781155841000,-500.0,0.00013699,2]
[424777996,1781155841000,-533.40008066,0.00013699,2]
[424777995,1781155841000,-533.40008066,0.00013699,2]
[424778047,1781155841000,-219.50287675,0.0001373,2]
[424778026,1781155841000,-508.82184165,0.00013699,2]
[424778030,1781155841000,-508.82184165,0.00013699,2]
[424778025,1781155841000,-508.82184165,0.00013699,2]
[424778029,1781155841000,-508.82184165,0.00013699,2]
[424778028,1781155841000,-508.82184165,0.00013699,2]
[424778031,1781155841000,-508.82184165,0.00013699,2]
[424778035,1781155841000,-508.82184165,0.00013699,2]
[424778033,1781155841000,-508.82184165,0.00013699,2]
[424778034,1781155841000,-508.82184165,0.00013699,2]
[424778032,1781155841000,-508.82184165,0.00013699,2]
[424778038,1781155841000,-150.0,0.000137,2]
[424778027,1781155841000,-508.82184165,0.00013699,2]
[424778036,1781155841000,-219.50287675,0.000137,2]
[424778039,1781155841000,-150.0,0.000137,2]
[424778042,1781155841000,-150.0,0.00013702,2]
[424778040,1781155841000,-150.0,0.000137,2]
[424778044,1781155841000,-150.0,0.00013708,2]
[424778043,1781155841000,-150.0,0.00013702,2]
[424778046,1781155841000,-150.0,0.00013726,2]
[424778045,1781155841000,-219.50287675,0.00013715,2]
[424778049,1781155841000,-150.0,0.00013745,2]
[424778050,1781155841000,-219.50287675,0.00013745,2]
[424777998,1781155841000,-533.40008066,0.00013699,2]
[424778048,1781155841000,-9706.21615487,0.00013745,2]
[424778041,1781155841000,-278.60891467,0.000137,2]
[424778024,1781155841000,-508.82184165,0.00013699,2]
[424778037,1781155841000,-150.0,0.000137,2]
[424778023,1781155841000,-508.82184165,0.00013699,2]
[424778021,1781155841000,-508.82184165,0.00013699,2]
[424777999,1781155841000,-533.40008066,0.00013699,2]
[424778003,1781155841000,-533.40008066,0.00013699,2]
[424778000,1781155841000,-533.40008066,0.00013699,2]
[424778005,1781155841000,-533.40008066,0.00013699,2]
[424778002,1781155841000,-533.40008066,0.00013699,2]
[424778004,1781155841000,-533.40008066,0.00013699,2]
[424778001,1781155841000,-533.40008066,0.00013699,2]
[424778006,1781155841000,-533.40008066,0.00013699,2]
[424778007,1781155841000,-533.40008066,0.00013699,2]
[424778008,1781155841000,-533.40008066,0.00013699,2]
[424778009,1781155841000,-533.40008066,0.00013699,2]
[424777997,1781155841000,-533.40008066,0.00013699,2]
[424778010,1781155841000,-533.40008066,0.00013699,2]
[424778011,1781155841000,-533.40008066,0.00013699,2]
[424778022,1781155841000,-508.82184165,0.00013699,2]
[424778012,1781155841000,-533.40008066,0.00013699,2]
[424778016,1781155841000,-533.40008066,0.00013699,2]
[424778013,1781155841000,-533.40008066,0.00013699,2]
[424778020,1781155841000,-508.82184165,0.00013699,2]
[424778017,1781155841000,-533.40008066,0.00013699,2]
[424778019,1781155841000,-508.82184165,0.00013699,2]
[424778014,1781155841000,-533.40008066,0.00013699,2]
[424778015,1781155841000,-533.40008066,0.00013699,2]
[424778018,1781155841000,-533.40008066,0.00013699,2]
[424778087,1781155842000,-219.50287675,0.00013957,2]
[424778079,1781155842000,-219.50287675,0.00013912,2]
[424778082,1781155842000,-219.50287675,0.00013927,2]
[424778080,1781155842000,-150.0,0.00013916,2]
[424778081,1781155842000,-150.0,0.00013916,2]
[424778083,1781155842000,-150.0,0.00013928,2]
[424778084,1781155842000,-150.0,0.0001393,2]
[424778078,1781155842000,-6900.0,0.000139,5]
[424778085,1781155842000,-164.57,0.00013931,2]
[424778086,1781155842000,-219.50287675,0.00013942,2]
[424778088,1781155842000,-150.0,0.00013959,2]
[424778092,1781155842000,-150.0,0.00013973,2]
[424778091,1781155842000,-219.50287675,0.00013972,2]
[424778093,1781155842000,-150.0,0.00013987,2]
[424778090,1781155842000,-150.0,0.00013969,2]
[424778094,1781155842000,-150.0,0.00013987,2]
[424778097,1781155842000,-995.43,0.00013989,2]
[424778096,1781155842000,-500.0,0.00013989,2]
[424778095,1781155842000,-219.50287675,0.00013987,2]
[424778098,1781155842000,-500.0,0.00013989,2]
[424778102,1781155842000,-150.0,0.00014001,2]
[424778101,1781155842000,-250.0,0.00014,2]
[424778077,1781155842000,-219.50287675,0.00013896,2]
[424778089,1781155842000,-150.0,0.00013965,2]
[424778075,1781155842000,-150.0,0.00013884,2]
[424778100,1781155842000,-150.0,0.00013999,2]
[424778073,1781155842000,-150.0,0.00013873,2]
[424778051,1781155842000,-150.0,0.00013752,2]
[424778052,1781155842000,-150.0,0.00013755,2]
[424778054,1781155842000,-219.50287675,0.0001376,2]
[424778053,1781155842000,-150.0,0.0001376,2]
[424778055,1781155842000,-219.50287675,0.00013775,2]
[424778058,1781155842000,-219.50287675,0.0001379,2]
[424778059,1781155842000,-150.0,0.00013794,2]
[424778057,1781155842000,-150.0,0.00013787,2]
[424778056,1781155842000,-150.0,0.00013787,2]
[424778060,1781155842000,-150.0,0.00013796,2]
[424778061,1781155842000,-219.50287675,0.00013806,2]
[424778064,1781155842000,-219.50287675,0.00013821,2]
[424778065,1781155842000,-150.0,0.00013828,2]
[424778062,1781155842000,-150.0,0.00013809,2]
[424778063,1781155842000,-150.0,0.00013821,2]
[424778070,1781155842000,-150.0,0.00013862,2]
[424778067,1781155842000,-219.50287675,0.00013836,2]
[424778071,1781155842000,-150.0,0.00013862,2]
[424778066,1781155842000,-150.0,0.0001383,2]
[424778068,1781155842000,-150.0,0.0001384,2]
[424778069,1781155842000,-219.50287675,0.00013851,2]
[424778072,1781155842000,-219.50287675,0.00013866,2]
[424778074,1781155842000,-219.50287675,0.00013881,2]
[424778076,1781155842000,-150.0,0.00013896,2]
[424778103,1781155842000,-219.50287675,0.00014002,2]
[424778153,1781155842000,-150.0,0.00014237,2]
[424778104,1781155842000,-150.0,0.00014017,2]
[424778131,1781155842000,-219.50287675,0.00014123,2]
[424778134,1781155842000,-150.0,0.00014135,2]
[424778137,1781155842000,-150.0,0.00014154,2]
[424778136,1781155842000,-150.0,0.00014149,2]
[424778132,1781155842000,-150.0,0.0001413,2]
[424778133,1781155842000,-150.0,0.0001413,2]
[424778138,1781155842000,-219.50287675,0.00014154,2]
[424778140,1781155842000,-219.50287675,0.00014169,2]
[424778139,1781155842000,-150.0,0.00014169,2]
[424778141,1781155842000,-150.0,0.00014173,2]
[424778144,1781155842000,-150.0,0.00014193,2]
[424778146,1781155842000,-150.0,0.00014203,2]
[424778143,1781155842000,-219.50287675,0.00014184,2]
[424778147,1781155842000,-219.50287675,0.00014214,2]
[424778145,1781155842000,-219.50287675,0.00014199,2]
[424778148,1781155842000,-150.0,0.00014216,2]
[424778151,1781155842000,-150.0,0.00014237,2]
[424778149,1781155842000,-1119.31,0.00014217,2]
[424778150,1781155842000,-219.50287675,0.00014229,2]
[424778154,1781155842000,-219.50287675,0.00014245,2]
[424778152,1781155842000,-150.0,0.00014237,2]
[424778155,1781155842000,-150.0,0.00014258,2]
[424778099,1781155842000,-26574.84911613,0.0001399,2]
[424778135,1781155842000,-219.50287675,0.00014139,2]
[424778129,1781155842000,-219.50287675,0.00014108,2]
[424778142,1781155842000,-150.0,0.00014183,2]
[424778130,1781155842000,-2192.47,0.00014121,2]
[424778108,1781155842000,-12164.52049628,0.00014026,2]
[424778128,1781155842000,-150.0,0.00014105,2]
[424778106,1781155842000,-150.0,0.00014023,2]
[424778107,1781155842000,-13157.50700331,0.00014026,2]
[424778105,1781155842000,-219.50287675,0.00014017,2]
[424778109,1781155842000,-1026.97,0.0001403,2]
[424778111,1781155842000,-219.50287675,0.00014033,2]
[424778110,1781155842000,-150.0,0.00014033,2]
[424778112,1781155842000,-150.0,0.00014044,2]
[424778114,1781155842000,-150.0,0.00014061,2]
[424778113,1781155842000,-219.50287675,0.00014048,2]
[424778116,1781155842000,-150.0,0.00014067,2]
[424778115,1781155842000,-219.50287675,0.00014063,2]
[424778125,1781155842000,-150.0,0.00014087,2]
[424778118,1781155842000,-500.0,0.00014067,2]
[424778117,1781155842000,-1689.27,0.00014067,2]
[424778120,1781155842000,-500.0,0.00014067,11]
[424778122,1781155842000,-150.0,0.00014076,2]
[424778124,1781155842000,-150.0,0.00014087,2]
[424778121,1781155842000,-533.65,0.00014067,2]
[424778126,1781155842000,-219.50287675,0.00014093,2]
[424778123,1781155842000,-219.50287675,0.00014078,2]
[424778119,1781155842000,-500.0,0.00014067,2]
[424778127,1781155842000,-150.0,0.00014101,2]
[424778194,1781155843000,-150.0,0.00014451,2]
[424778192,1781155843000,-1269.31,0.00014443,2]
[424778190,1781155843000,-150.0,0.00014441,2]
[424778189,1781155843000,-150.0,0.0001443,2]
[424778187,1781155843000,-150.0,0.00014413,2]
[424778186,1781155843000,-219.50287675,0.00014411,2]
[424778185,1781155843000,-150.0,0.00014407,2]
[424778188,1781155843000,-219.50287675,0.00014426,2]
[424778193,1781155843000,-203.8,0.00014443,2]
[424778191,1781155843000,-219.50287675,0.00014441,2]
[424778195,1781155843000,-219.50287675,0.00014456,2]
[424778206,1781155843000,-150.0,0.00014501,2]
[424778199,1781155843000,-219.50287675,0.00014472,2]
[424778198,1781155843000,-12164.52049628,0.00014463,2]
[424778197,1781155843000,-13157.50700331,0.00014463,2]
[424778200,1781155843000,-150.0,0.00014472,2]
[424778202,1781155843000,-150.0,0.00014487,2]
[424778203,1781155843000,-150.0,0.00014487,2]
[424778204,1781155843000,-219.50287675,0.00014487,2]
[424778201,1781155843000,-150.0,0.00014475,2]
[424778205,1781155843000,-9300.0,0.000145,5]
[424778208,1781155843000,-150.0,0.00014505,2]
[424778183,1781155843000,-219.50287675,0.00014396,2]
[424778196,1781155843000,-150.0,0.00014457,2]
[424778184,1781155843000,-150.0,0.00014398,2]
[424778156,1781155843000,-219.50287675,0.0001426,2]
[424778180,1781155843000,-736.0,0.00014381,2]
[424778157,1781155843000,-150.0,0.00014271,2]
[424778158,1781155843000,-726.0077245,0.00014273,2]
[424778161,1781155843000,-219.50287675,0.0001429,2]
[424778160,1781155843000,-150.0,0.00014281,2]
[424778159,1781155843000,-219.50287675,0.00014275,2]
[424778162,1781155843000,-150.0,0.00014291,2]
[424778165,1781155843000,-150.0,0.00014305,2]
[424778164,1781155843000,-150.0,0.00014301,2]
[424778163,1781155843000,-4643.56377,0.00014298,2]
[424778168,1781155843000,-219.50287675,0.0001432,2]
[424778167,1781155843000,-150.0,0.0001432,2]
[424778182,1781155843000,-150.0,0.00014387,2]
[424778166,1781155843000,-219.50287675,0.00014305,2]
[424778171,1781155843000,-219.50287675,0.00014335,2]
[424778170,1781155843000,-150.0,0.00014325,2]
[424778172,1781155843000,-150.0,0.00014339,2]
[424778173,1781155843000,-150.0,0.00014344,2]
[424778177,1781155843000,-150.0,0.00014369,2]
[424778174,1781155843000,-150.0,0.00014344,2]
[424778178,1781155843000,-150.0,0.00014373,2]
[424778175,1781155843000,-219.50287675,0.00014351,2]
[424778176,1781155843000,-219.50287675,0.00014366,2]
[424778179,1781155843000,-219.50287675,0.00014381,2]
[424778181,1781155843000,-150.0,0.00014387,2]
[424778169,1781155843000,-9706.21615487,0.00014322,2]
[424778207,1781155843000,-219.50287675,0.00014502,2]
[424778212,1781155843000,-219.50287675,0.00014532,2]
[424778210,1781155843000,-150.0,0.00014515,2]
[424778245,1781155843000,-150.0,0.00014687,2]
[424778241,1781155843000,-150.0,0.00014678,2]
[424778239,1781155843000,-150.0,0.00014665,2]
[424778242,1781155843000,-150.0,0.0001468,2]
[424778240,1781155843000,-219.50287675,0.00014668,2]
[424778247,1781155843000,-2300.0,0.000147,5]
[424778246,1781155843000,-219.50287675,0.00014699,2]
[424778249,1781155843000,-150.0,0.00014714,2]
[424778252,1781155843000,-219.50287675,0.00014714,2]
[424778258,1781155843000,-443.25,0.00014747,2]
[424778256,1781155843000,-150.0,0.00014729,2]
[424778253,1781155843000,-150.0,0.00014719,2]
[424778257,1781155843000,-219.50287675,0.00014744,2]
[424778255,1781155843000,-219.50287675,0.00014729,2]
[424778261,1781155843000,-150.0,0.00014766,2]
[424778259,1781155843000,-150.0,0.00014748,2]
[424778260,1781155843000,-219.50287675,0.00014759,2]
[424778262,1781155843000,-150.0,0.00014772,2]
[424778263,1781155843000,-150.0,0.00014772,2]
[424778264,1781155843000,-219.50287675,0.00014774,2]
[424778266,1781155843000,-219.50287675,0.0001479,2]
[424778265,1781155843000,-150.0,0.00014782,2]
[424778209,1781155843000,-150.0,0.00014509,2]
[424778244,1781155843000,-150.0,0.00014687,2]
[424778243,1781155843000,-219.50287675,0.00014684,2]
[424778254,1781155843000,-150.0,0.00014722,2]
[424778236,1781155843000,-150.0,0.00014653,2]
[424778214,1781155843000,-150.0,0.00014546,2]
[424778237,1781155843000,-219.50287675,0.00014653,2]
[424778211,1781155843000,-219.50287675,0.00014517,2]
[424778213,1781155843000,-150.0,0.00014544,2]
[424778215,1781155843000,-219.50287675,0.00014547,2]
[424778217,1781155843000,-150.0,0.00014558,2]
[424778220,1781155843000,-150.0,0.00014578,2]
[424778221,1781155843000,-219.50287675,0.00014578,2]
[424778219,1781155843000,-502.0,0.00014575,2]
[424778218,1781155843000,-219.50287675,0.00014562,2]
[424778223,1781155843000,-219.50287675,0.00014593,2]
[424778222,1781155843000,-150.0,0.0001459,2]
[424778216,1781155843000,-150.0,0.00014558,2]
[424778226,1781155843000,-150.0,0.00014601,2]
[424778235,1781155843000,-150.0,0.00014646,2]
[424778224,1781155843000,-500.0,0.00014599,2]
[424778233,1781155843000,-219.50287675,0.00014638,2]
[424778232,1781155843000,-150.0,0.00014634,2]
[424778231,1781155843000,-219.50287675,0.00014623,2]
[424778228,1781155843000,-1500.0,0.00014608,2]
[424778234,1781155843000,-150.0,0.00014644,2]
[424778229,1781155843000,-150.0,0.00014612,2]
[424778227,1781155843000,-219.50287675,0.00014608,2]
[424778225,1781155843000,-11600.0,0.000146,5]
[424778230,1781155843000,-150.0,0.00014612,2]
[424778304,1781155844000,-150.0,0.00014884,2]
[424778297,1781155844000,-200.0,0.00014879,2]
[424778300,1781155844000,-500.0,0.00014882,2]
[424778298,1781155844000,-150.0,0.00014879,2]
[424778301,1781155844000,-995.43,0.00014882,2]
[424778299,1781155844000,-219.50287675,0.0001488,2]
[424778296,1781155844000,-25000.0,0.00014874,3]
[424778302,1781155844000,-25000.0,0.00014882,3]
[424778303,1781155844000,-25000.0,0.00014882,3]
[424778305,1781155844000,-10000.0,0.00014888,2]
[424778306,1781155844000,-25000.0,0.00014891,3]
[424778317,1781155844000,-500.0,0.00014899,2]
[424778308,1781155844000,-25000.0,0.00014891,3]
[424778310,1781155844000,-219.50287675,0.00014895,2]
[424778313,1781155844000,-500.0,0.00014899,2]
[424778311,1781155844000,-150.0,0.00014898,2]
[424778309,1781155844000,-5800.0,0.00014891,2]
[424778312,1781155844000,-1689.27,0.00014899,2]
[424778315,1781155844000,-500.0,0.00014899,12]
[424778314,1781155844000,-264.95338711,0.00014899,2]
[424778316,1781155844000,-533.65,0.00014899,2]
[424778318,1781155844000,-500.0,0.00014899,2]
[424778295,1781155844000,-219.50287675,0.00014865,2]
[424778307,1781155844000,-25000.0,0.00014891,3]
[424778294,1781155844000,-25000.0,0.00014865,3]
[424778268,1781155844000,-2006.0,0.000148,2]
[424778293,1781155844000,-150.0,0.00014858,2]
[424778320,1781155844000,-500.0,0.00014899,2]
[424778267,1781155844000,-500.0,0.00014799,2]
[424778269,1781155844000,-621.83682064,0.000148,2]
[424778271,1781155844000,-219.50287675,0.00014805,2]
[424778270,1781155844000,-2300.0,0.000148,5]
[424778272,1781155844000,-150.0,0.0001481,2]
[424778274,1781155844000,-150.0,0.00014816,2]
[424778275,1781155844000,-150.0,0.0001482,2]
[424778276,1781155844000,-219.50287675,0.0001482,2]
[424778277,1781155844000,-150.0,0.00014826,2]
[424778279,1781155844000,-219.50287675,0.00014835,2]
[424778292,1781155844000,-25000.0,0.00014856,3]
[424778280,1781155844000,-219.97283573,0.00014845,2]
[424778281,1781155844000,-152.0,0.00014845,2]
[424778283,1781155844000,-152.0,0.00014845,2]
[424778282,1781155844000,-152.0,0.00014845,2]
[424778284,1781155844000,-215.83684948,0.00014845,2]
[424778289,1781155844000,-150.0,0.0001485,2]
[424778285,1781155844000,-151.0,0.00014845,2]
[424778288,1781155844000,-621.83682064,0.0001485,2]
[424778286,1781155844000,-151.0,0.00014845,2]
[424778287,1781155844000,-151.94160012,0.00014845,2]
[424778290,1781155844000,-219.50287675,0.0001485,2]
[424778291,1781155844000,-150.0,0.00014854,2]
[424778278,1781155844000,-199.5,0.00014832,2]
[424778321,1781155844000,-503.42046644,0.00014899,2]
[424778273,1781155844000,-150.0,0.00014815,2]
[424778322,1781155844000,-500.0,0.00014899,2]
[424778376,1781155844000,-2300.0,0.000149,5]
[424778378,1781155844000,-25000.0,0.000149,3]
[424778375,1781155844000,-177.357647,0.000149,2]
[424778379,1781155844000,-12164.52049628,0.000149,2]
[424778377,1781155844000,-13157.50700331,0.000149,2]
[424778380,1781155844000,-9706.21615487,0.000149,2]
[424778384,1781155844000,-150.0,0.00014918,2]
[424778381,1781155844000,-621.83682064,0.000149,2]
[424778383,1781155844000,-219.50287675,0.00014911,2]
[424778385,1781155844000,-202.46385348,0.00014925,2]
[424778386,1781155844000,-219.50287675,0.00014926,2]
[424778374,1781155844000,-177.357647,0.000149,2]
[424778389,1781155844000,-150.0,0.00014942,2]
[424778388,1781155844000,-219.50287675,0.00014941,2]
[424778390,1781155844000,-150.0,0.00014943,2]
[424778387,1781155844000,-150.0,0.00014933,2]
[424778393,1781155844000,-4702.0,0.00014959,2]
[424778394,1781155844000,-219.50287675,0.00014971,2]
[424778395,1781155844000,-225.43309031,0.00014986,2]
[424778392,1781155844000,-219.50287675,0.00014956,2]
[424778398,1781155844000,-289.90717118,0.00014986,2]
[424778396,1781155844000,-248.12091067,0.00014986,2]
[424778397,1781155844000,-210.0975545,0.00014986,2]
[424778319,1781155844000,-500.0,0.00014899,2]
[424778391,1781155844000,-150.0,0.00014952,2]
[424778371,1781155844000,-177.357647,0.000149,2]
[424778382,1781155844000,-150.0,0.00014901,2]
[424778373,1781155844000,-177.357647,0.000149,2]
[424778323,1781155844000,-500.0,0.00014899,2]
[424778369,1781155844000,-613.32624719,0.000149,2]
[424778324,1781155844000,-500.0,0.00014899,2]
[424778326,1781155844000,-500.0,0.00014899,2]
[424778331,1781155844000,-500.0,0.00014899,2]
[424778333,1781155844000,-500.0,0.00014899,2]
[424778328,1781155844000,-500.0,0.00014899,2]
[424778338,1781155844000,-500.0,0.00014899,2]
[424778341,1781155844000,-995.43,0.00014899,2]
[424778335,1781155844000,-500.0,0.00014899,2]
[424778340,1781155844000,-171.51496798,0.00014899,2]
[424778342,1781155844000,-995.43,0.00014899,2]
[424778344,1781155844000,-995.43,0.00014899,2]
[424778346,1781155844000,-995.43,0.00014899,2]
[424778362,1781155844000,-164.33069,0.000149,2]
[424778350,1781155844000,-6298.8704,0.000149,2]
[424778352,1781155844000,-1722.4372,0.000149,2]
[424778354,1781155844000,-726.0077245,0.000149,2]
[424778356,1781155844000,-25000.0,0.000149,3]
[424778366,1781155844000,-5800.0,0.000149,2]
[424778367,1781155844000,-151.0,0.000149,2]
[424778364,1781155844000,-164.33069,0.000149,2]
[424778359,1781155844000,-164.33069,0.000149,2]
[424778360,1781155844000,-164.33069,0.000149,2]
[424778348,1781155844000,-25000.0,0.000149,3]
[424778368,1781155844000,-151.0,0.000149,2]
[424778438,1781155845000,-250.0,0.0001499,2]
[424778437,1781155845000,-188.14874168,0.0001499,10]
[424778433,1781155845000,-151.0,0.00014988,2]
[424778431,1781155845000,-1064.597968,0.00014988,2]
[424778429,1781155845000,-1064.597968,0.00014988,2]
[424778435,1781155845000,-46629.8939097,0.00014988,2]
[424778432,1781155845000,-1064.597968,0.00014988,2]
[424778434,1781155845000,-151.0,0.00014988,2]
[424778430,1781155845000,-1064.597968,0.00014988,2]
[424778441,1781155845000,-293.76711625,0.0001499,2]
[424778436,1781155845000,-151.0,0.00014988,2]
[424778440,1781155845000,-293.76711625,0.0001499,2]
[424778452,1781155845000,-1689.27,0.00014999,2]
[424778443,1781155845000,-151.0,0.00014993,2]
[424778442,1781155845000,-151.0,0.00014993,2]
[424778444,1781155845000,-151.0,0.00014997,2]
[424778445,1781155845000,-1689.27,0.00014999,2]